[Event "Late-Titled-Tuesday-Blitz-February-13-2024"]
[Site "Chess.com"]
[Date "2024.02.13"]
[Round "7"]
[White "Alexei_Gubajdullin"]
[Black "delqate"]
[Result "1-0"]
[WhiteElo "2641"]
[BlackElo "2495"]
[TimeControl "180+1"]
[EndTime "15:20:13 PST"]
[Termination "Alexei_Gubajdullin won on time"]

1. Nf3 {[%clk 0:02:57.1]} 1... d5 {[%clk 0:02:59.7]} 2. g3 {[%clk 0:02:52]} 2...
Nf6 {[%clk 0:02:59.6]} 3. Bg2 {[%clk 0:02:49.7]} 3... Bf5 {[%clk 0:02:59.4]} 4.
O-O {[%clk 0:02:49.4]} 4... h6 {[%clk 0:02:58.2]} 5. d3 {[%clk 0:02:48.1]} 5...
e6 {[%clk 0:02:57.5]} 6. c4 {[%clk 0:02:47.8]} 6... c6 {[%clk 0:02:57.1]} 7. Qb3
{[%clk 0:02:47.2]} 7... Qb6 {[%clk 0:02:56.4]} 8. Be3 {[%clk 0:02:47.1]} 8...
Qxb3 {[%clk 0:02:52.3]} 9. axb3 {[%clk 0:02:46.9]} 9... a6 {[%clk 0:02:51.6]}
10. Ne5 {[%clk 0:02:41.9]} 10... Nbd7 {[%clk 0:02:49.3]} 11. Bd4 {[%clk
0:02:40.7]} 11... Nxe5 {[%clk 0:02:39.5]} 12. Bxe5 {[%clk 0:02:40.2]} 12... Bb4
{[%clk 0:02:36.3]} 13. Na3 {[%clk 0:02:36.9]} 13... Ke7 {[%clk 0:02:30.6]} 14.
Nc2 {[%clk 0:02:36.2]} 14... Bd6 {[%clk 0:02:30]} 15. Bc3 {[%clk 0:02:35.9]}
15... e5 {[%clk 0:02:20.6]} 16. b4 {[%clk 0:02:31.7]} 16... dxc4 {[%clk
0:02:11.2]} 17. Ne3 {[%clk 0:02:31.2]} 17... Be6 {[%clk 0:02:02.7]} 18. Nxc4
{[%clk 0:02:30.9]} 18... Nd7 {[%clk 0:01:57.8]} 19. Nxd6 {[%clk 0:02:27]} 19...
Kxd6 {[%clk 0:01:58.7]} 20. f4 {[%clk 0:02:27]} 20... f6 {[%clk 0:01:52.4]} 21.
fxe5+ {[%clk 0:02:26.7]} 21... Nxe5 {[%clk 0:01:53.3]} 22. Rf4 {[%clk
0:02:24.4]} 22... Rad8 {[%clk 0:01:48.5]} 23. h3 {[%clk 0:02:17.1]} 23... Rhe8
{[%clk 0:01:43.5]} 24. Rd4+ {[%clk 0:02:09]} 24... Ke7 {[%clk 0:01:35.4]} 25.
Rxd8 {[%clk 0:02:06.8]} 25... Rxd8 {[%clk 0:01:36.3]} 26. Kf2 {[%clk 0:02:06.4]}
26... Bd5 {[%clk 0:01:29.1]} 27. Bf1 {[%clk 0:02:05.4]} 27... Rd7 {[%clk
0:01:05.5]} 28. e4 {[%clk 0:02:03.7]} 28... Bf7 {[%clk 0:01:00.1]} 29. d4 {[%clk
0:02:03.3]} 29... Nc4 {[%clk 0:00:58.3]} 30. e5 {[%clk 0:01:58.6]} 30... fxe5
{[%clk 0:00:52]} 31. dxe5 {[%clk 0:01:57]} 31... Nb6 {[%clk 0:00:51]} 32. h4
{[%clk 0:01:51.3]} 32... Bc4 {[%clk 0:00:35.2]} 33. Bh3 {[%clk 0:01:49.8]} 33...
Rd3 {[%clk 0:00:32.7]} 34. Bf5 {[%clk 0:01:45.7]} 34... Rd5 {[%clk 0:00:29.4]}
35. Be4 {[%clk 0:01:45]} 35... Rd8 {[%clk 0:00:28.3]} 36. g4 {[%clk 0:01:40.6]}
36... Bd5 {[%clk 0:00:28.3]} 37. Bg6 {[%clk 0:01:38.3]} 37... Bf7 {[%clk
0:00:28.2]} 38. Bf5 {[%clk 0:01:34.6]} 38... Be6 {[%clk 0:00:28]} 39. Kg3 {[%clk
0:01:34]} 39... h5 {[%clk 0:00:21.2]} 40. Bxe6 {[%clk 0:01:29.6]} 40... Kxe6
{[%clk 0:00:22.1]} 41. gxh5 {[%clk 0:01:30]} 41... Nd5 {[%clk 0:00:22.2]} 42.
Rg1 {[%clk 0:01:22.7]} 42... Nxc3 {[%clk 0:00:21]} 43. bxc3 {[%clk 0:01:22.7]}
43... Kxe5 {[%clk 0:00:20.9]} 44. Kf2 {[%clk 0:01:22.8]} 44... Kf6 {[%clk
0:00:20.8]} 45. Rg6+ {[%clk 0:01:21.8]} 45... Kf7 {[%clk 0:00:20.8]} 46. Ke3
{[%clk 0:01:21.9]} 46... Rd1 {[%clk 0:00:20.1]} 47. Rg5 {[%clk 0:01:15.2]} 47...
Rh1 {[%clk 0:00:18.2]} 48. Rf5+ {[%clk 0:01:13.2]} 48... Ke7 {[%clk 0:00:17.6]}
49. Rf4 {[%clk 0:01:12.8]} 49... Ke6 {[%clk 0:00:18]} 50. Kd4 {[%clk 0:01:09.6]}
50... Kd6 {[%clk 0:00:16.2]} 51. Rg4 {[%clk 0:01:06.9]} 51... Rd1+ {[%clk
0:00:14.2]} 52. Kc4 {[%clk 0:01:05]} 52... b5+ {[%clk 0:00:09.5]} 53. Kb3 {[%clk
0:01:04.5]} 53... Rb1+ {[%clk 0:00:09.6]} 54. Kc2 {[%clk 0:01:03.7]} 54... Rh1
{[%clk 0:00:10.3]} 55. Rxg7 {[%clk 0:01:02.9]} 55... Rxh4 {[%clk 0:00:09.5]} 56.
Rg5 {[%clk 0:01:02.8]} 56... Rh3 {[%clk 0:00:09.1]} 57. Kd2 {[%clk 0:01:01]}
57... Kc7 {[%clk 0:00:08.9]} 58. Rc5 {[%clk 0:00:58.6]} 58... Kb6 {[%clk
0:00:08.9]} 59. Rf5 {[%clk 0:00:56.9]} 59... a5 {[%clk 0:00:09.1]} 60. bxa5+
{[%clk 0:00:52.6]} 60... Kxa5 {[%clk 0:00:10]} 61. Kc2 {[%clk 0:00:52]} 61...
Kb6 {[%clk 0:00:10.4]} 62. Kb3 {[%clk 0:00:51.7]} 62... Rh4 {[%clk 0:00:08.7]}
63. Rg5 {[%clk 0:00:51]} 63... Ka6 {[%clk 0:00:08.5]} 64. Kb2 {[%clk 0:00:48]}
64... Kb6 {[%clk 0:00:08.9]} 65. Kc2 {[%clk 0:00:47.7]} 65... Rh3 {[%clk
0:00:09]} 66. Kd2 {[%clk 0:00:47.2]} 66... Ka5 {[%clk 0:00:08.1]} 67. Re5 {[%clk
0:00:43.3]} 67... Ka4 {[%clk 0:00:07.2]} 68. Rc5 {[%clk 0:00:39.8]} 68... Kb3
{[%clk 0:00:06.2]} 69. Ke2 {[%clk 0:00:37.7]} 69... Rh2+ {[%clk 0:00:02.5]} 70.
Kf3 {[%clk 0:00:36.3]} 70... Rh3+ {[%clk 0:00:02.6]} 71. Kg4 {[%clk 0:00:36.2]}
71... Rh1 {[%clk 0:00:02.8]} 72. Kg5 {[%clk 0:00:35.6]} 72... Rg1+ {[%clk
0:00:01.5]} 73. Kf6 {[%clk 0:00:35.1]} 73... Rf1+ {[%clk 0:00:01.5]} 74. Rf5
{[%clk 0:00:22.8]} 74... Rh1 {[%clk 0:00:02.4]} 75. Rc5 {[%clk 0:00:21.7]} 75...
Ka4 {[%clk 0:00:01.5]} 76. Kg6 {[%clk 0:00:19.7]} 76... b4 {[%clk 0:00:02]} 77.
cxb4 {[%clk 0:00:19.4]} 77... Kxb4 {[%clk 0:00:02.9]} 78. Rxc6 {[%clk
0:00:20.3]} 78... Rg1+ {[%clk 0:00:03]} 79. Kh6 {[%clk 0:00:20.3]} 79... Rg2
{[%clk 0:00:03.1]} 80. Kh7 {[%clk 0:00:19.9]} 80... Rg1 {[%clk 0:00:03.2]} 81.
h6 {[%clk 0:00:20]} 81... Kb5 {[%clk 0:00:03.9]} 82. Rc2 {[%clk 0:00:19.6]}
82... Rg3 {[%clk 0:00:03.9]} 83. Kh8 {[%clk 0:00:19.7]} 83... Rg4 {[%clk
0:00:04.3]} 84. h7 {[%clk 0:00:19.9]} 84... Rg3 {[%clk 0:00:04.3]} 85. Rc8
{[%clk 0:00:18]} 85... Kb6 {[%clk 0:00:04.5]} 86. Rg8 {[%clk 0:00:17.7]} 86...
Rf3 {[%clk 0:00:04.1]} 87. Kg7 {[%clk 0:00:17.6]} 87... Rg3+ {[%clk 0:00:04.6]}
88. Kf7 {[%clk 0:00:17.7]} 88... Rf3+ {[%clk 0:00:05]} 89. Ke6 {[%clk
0:00:17.6]} 89... Re3+ {[%clk 0:00:04.9]} 90. Kd5 {[%clk 0:00:17.6]} 90... Rd3+
{[%clk 0:00:04.7]} 91. Ke4 {[%clk 0:00:17.4]} 1-0

[Event "Late-Titled-Tuesday-Blitz-February-13-2024"]
[Site "Chess.com"]
[Date "2024.02.13"]
[Round "8"]
[White "Zavgorodniy_Sergiy"]
[Black "szachmistrz2500"]
[Result "1-0"]
[WhiteElo "2637"]
[BlackElo "2447"]
[TimeControl "180+1"]
[EndTime "15:23:18 PST"]
[Termination "Zavgorodniy_Sergiy won by resignation"]

1. d4 {[%clk 0:03:00.9]} 1... d5 {[%clk 0:02:56.4]} 2. c4 {[%clk 0:03:01.1]}
2... c6 {[%clk 0:02:56.1]} 3. e3 {[%clk 0:03:01.2]} 3... Nf6 {[%clk 0:02:56]} 4.
Bd3 {[%clk 0:03:01.4]} 4... a6 {[%clk 0:02:54.3]} 5. Nd2 {[%clk 0:03:01.2]} 5...
b5 {[%clk 0:02:54.2]} 6. b3 {[%clk 0:03:01.5]} 6... Bg4 {[%clk 0:02:49.7]} 7.
Ngf3 {[%clk 0:03:01.2]} 7... Nbd7 {[%clk 0:02:48.1]} 8. Qc2 {[%clk 0:03:01.5]}
8... e6 {[%clk 0:02:44.3]} 9. Bb2 {[%clk 0:03:01.7]} 9... Be7 {[%clk 0:02:43.2]}
10. O-O {[%clk 0:03:01.8]} 10... O-O {[%clk 0:02:41.4]} 11. Ne5 {[%clk
0:03:01.9]} 11... Qc7 {[%clk 0:02:21.9]} 12. Bxh7+ {[%clk 0:02:51.1]} 12... Kh8
{[%clk 0:02:16.1]} 13. Bd3 {[%clk 0:02:50.1]} 13... Nxe5 {[%clk 0:02:16]} 14.
dxe5 {[%clk 0:02:51]} 14... Nd7 {[%clk 0:02:16.4]} 15. f4 {[%clk 0:02:40.3]}
15... f5 {[%clk 0:02:09.9]} 16. h3 {[%clk 0:02:33.7]} 16... Bh5 {[%clk
0:02:09.2]} 17. cxd5 {[%clk 0:02:34]} 17... exd5 {[%clk 0:02:07.1]} 18. Bxf5
{[%clk 0:02:34.2]} 18... Qb6 {[%clk 0:02:06]} 19. Bxd7 {[%clk 0:02:29.4]} 1-0

[Event "Late-Titled-Tuesday-Blitz-February-13-2024"]
[Site "Chess.com"]
[Date "2024.02.13"]
[Round "8"]
[White "Doudou2015"]
[Black "MoreChessJulia"]
[Result "1-0"]
[WhiteElo "2187"]
[BlackElo "2052"]
[TimeControl "180+1"]
[EndTime "15:23:28 PST"]
[Termination "Doudou2015 won by resignation"]

1. b3 {[%clk 0:03:00.9]} 1... Nf6 {[%clk 0:02:58.3]} 2. Bb2 {[%clk 0:03:01.8]}
2... e6 {[%clk 0:02:58.3]} 3. e3 {[%clk 0:03:01.7]} 3... b6 {[%clk 0:02:58.2]}
4. f4 {[%clk 0:03:00.6]} 4... Bb7 {[%clk 0:02:58.3]} 5. Nf3 {[%clk 0:03:01.4]}
5... d5 {[%clk 0:02:58]} 6. Ne5 {[%clk 0:02:56.2]} 6... Nbd7 {[%clk 0:02:57.7]}
7. Bb5 {[%clk 0:02:55.6]} 7... Bd6 {[%clk 0:02:53.3]} 8. Nxd7 {[%clk 0:02:53.5]}
8... Nxd7 {[%clk 0:02:51.8]} 9. Qh5 {[%clk 0:02:49.3]} 9... O-O {[%clk
0:02:47.1]} 10. O-O {[%clk 0:02:46.4]} 10... a6 {[%clk 0:02:34]} 11. Bd3 {[%clk
0:02:45.6]} 11... g6 {[%clk 0:02:29.9]} 12. Qh6 {[%clk 0:02:45.5]} 12... Nf6
{[%clk 0:02:23.2]} 13. Rf3 {[%clk 0:02:45.4]} 13... Re8 {[%clk 0:02:17.1]} 14.
Rh3 {[%clk 0:02:37.1]} 14... Bf8 {[%clk 0:02:15.6]} 15. Qh4 {[%clk 0:02:24]}
15... h5 {[%clk 0:02:12.6]} 16. Bxf6 {[%clk 0:02:08.8]} 1-0

[Event "Late-Titled-Tuesday-Blitz-February-13-2024"]
[Site "Chess.com"]
[Date "2024.02.13"]
[Round "8"]
[White "GoltsevDmitry2000"]
[Black "DenLaz"]
[Result "0-1"]
[WhiteElo "2784"]
[BlackElo "3059"]
[TimeControl "180+1"]
[EndTime "15:24:20 PST"]
[Termination "DenLaz won by resignation"]

1. e4 {[%clk 0:02:55]} 1... c5 {[%clk 0:03:00.4]} 2. Nf3 {[%clk 0:02:54.8]} 2...
e6 {[%clk 0:03:01.1]} 3. b3 {[%clk 0:02:53.6]} 3... Nc6 {[%clk 0:02:58.8]} 4.
Bb2 {[%clk 0:02:53.6]} 4... a6 {[%clk 0:02:59.1]} 5. d4 {[%clk 0:02:53.5]} 5...
cxd4 {[%clk 0:02:59.2]} 6. Nxd4 {[%clk 0:02:54.2]} 6... Qf6 {[%clk 0:02:59.8]}
7. c3 {[%clk 0:02:52.5]} 7... Bc5 {[%clk 0:02:50.5]} 8. Nf3 {[%clk 0:02:51]}
8... Qg6 {[%clk 0:02:49.9]} 9. Nbd2 {[%clk 0:02:50.1]} 9... Nf6 {[%clk
0:02:50.1]} 10. Qc2 {[%clk 0:02:46.1]} 10... Ng4 {[%clk 0:02:42.1]} 11. Nd4
{[%clk 0:02:43.3]} 11... e5 {[%clk 0:02:42.1]} 12. f3 {[%clk 0:02:06.8]} 12...
Ne3 {[%clk 0:02:39.1]} 13. Qd3 {[%clk 0:02:06]} 13... exd4 {[%clk 0:02:38.9]}
14. b4 {[%clk 0:01:37.2]} 14... Ba7 {[%clk 0:02:26.8]} 15. g3 {[%clk 0:01:28.4]}
15... O-O {[%clk 0:02:24.7]} 16. a3 {[%clk 0:01:24.9]} 16... d5 {[%clk
0:02:23.5]} 17. cxd4 {[%clk 0:01:22.8]} 17... Nxf1 {[%clk 0:02:21.9]} 18. Rxf1
{[%clk 0:01:20.7]} 18... Bh3 {[%clk 0:02:22.3]} 19. Rf2 {[%clk 0:01:18]} 19...
Rad8 {[%clk 0:02:22.7]} 20. e5 {[%clk 0:01:16.5]} 20... Qxd3 {[%clk 0:02:22.1]}
0-1

[Event "Late-Titled-Tuesday-Blitz-February-13-2024"]
[Site "Chess.com"]
[Date "2024.02.13"]
[Round "8"]
[White "SpeedofLight0"]
[Black "AryanTari"]
[Result "1-0"]
[WhiteElo "3056"]
[BlackElo "2950"]
[TimeControl "180+1"]
[EndTime "15:24:37 PST"]
[Termination "SpeedofLight0 won by checkmate"]

1. e4 {[%clk 0:02:59.5]} 1... e5 {[%clk 0:02:57.5]} 2. Nf3 {[%clk 0:02:59.4]}
2... Nc6 {[%clk 0:02:58.1]} 3. Bb5 {[%clk 0:02:59]} 3... Nf6 {[%clk 0:02:58.5]}
4. O-O {[%clk 0:02:49.1]} 4... Nxe4 {[%clk 0:02:58.2]} 5. d4 {[%clk 0:02:49.5]}
5... Nd6 {[%clk 0:02:58]} 6. dxe5 {[%clk 0:02:50.2]} 6... Nxb5 {[%clk
0:02:58.1]} 7. a4 {[%clk 0:02:50.9]} 7... Nbd4 {[%clk 0:02:58.5]} 8. Nxd4 {[%clk
0:02:51.6]} 8... d5 {[%clk 0:02:58.7]} 9. Nxc6 {[%clk 0:02:51.6]} 9... bxc6
{[%clk 0:02:58.4]} 10. Qd3 {[%clk 0:02:52.5]} 10... Qd7 {[%clk 0:02:48]} 11. Nd2
{[%clk 0:02:48.9]} 11... c5 {[%clk 0:02:37.8]} 12. c4 {[%clk 0:02:35.1]} 12...
c6 {[%clk 0:02:34.2]} 13. f4 {[%clk 0:02:32.7]} 13... g6 {[%clk 0:02:27]} 14. f5
{[%clk 0:02:13]} 14... gxf5 {[%clk 0:02:24.5]} 15. Nf3 {[%clk 0:02:13.1]} 15...
Ba6 {[%clk 0:02:15.4]} 16. Qc3 {[%clk 0:02:08.1]} 16... Bg7 {[%clk 0:02:09.3]}
17. b3 {[%clk 0:02:02.6]} 17... dxc4 {[%clk 0:01:53.3]} 18. bxc4 {[%clk
0:02:03.5]} 18... Qe6 {[%clk 0:01:53.5]} 19. Bg5 {[%clk 0:01:59]} 19... Qxc4
{[%clk 0:01:52.3]} 20. Qa5 {[%clk 0:01:56.4]} 20... Bc8 {[%clk 0:01:22.2]} 21.
Qd8# {[%clk 0:01:54.9]} 1-0

[Event "Late-Titled-Tuesday-Blitz-February-13-2024"]
[Site "Chess.com"]
[Date "2024.02.13"]
[Round "8"]
[White "Rodalquilar"]
[Black "Jaka_Brilej"]
[Result "1-0"]
[WhiteElo "2767"]
[BlackElo "2532"]
[TimeControl "180+1"]
[EndTime "15:25:00 PST"]
[Termination "Rodalquilar won by resignation"]

1. d4 {[%clk 0:03:00.9]} 1... Nf6 {[%clk 0:02:55.2]} 2. Nf3 {[%clk 0:03:01.1]}
2... g6 {[%clk 0:02:49.2]} 3. Bf4 {[%clk 0:03:01.1]} 3... Bg7 {[%clk 0:02:47.8]}
4. e3 {[%clk 0:03:01.6]} 4... O-O {[%clk 0:02:47.7]} 5. Be2 {[%clk 0:03:02.1]}
5... d6 {[%clk 0:02:46]} 6. O-O {[%clk 0:03:02.4]} 6... b6 {[%clk 0:02:45.9]} 7.
h3 {[%clk 0:03:02.5]} 7... Bb7 {[%clk 0:02:46.2]} 8. Bh2 {[%clk 0:03:02.9]} 8...
Nbd7 {[%clk 0:02:45.9]} 9. a4 {[%clk 0:03:03.4]} 9... a5 {[%clk 0:02:45]} 10.
Nbd2 {[%clk 0:03:03.8]} 10... e6 {[%clk 0:02:45.5]} 11. c3 {[%clk 0:02:59.6]}
11... Qe7 {[%clk 0:02:45.9]} 12. Bd3 {[%clk 0:03:00.1]} 12... e5 {[%clk
0:02:40.3]} 13. e4 {[%clk 0:03:00.5]} 13... exd4 {[%clk 0:02:28.9]} 14. cxd4
{[%clk 0:03:01.4]} 14... Nxe4 {[%clk 0:02:29.4]} 15. Nxe4 {[%clk 0:03:01.6]}
15... Bxe4 {[%clk 0:02:29.8]} 16. Re1 {[%clk 0:03:02.1]} 16... d5 {[%clk
0:02:30.3]} 17. Nd2 {[%clk 0:02:50.8]} 17... Qd8 {[%clk 0:02:26.7]} 18. Nxe4
{[%clk 0:02:48.7]} 18... dxe4 {[%clk 0:02:24.8]} 19. Bxe4 {[%clk 0:02:49.2]}
19... Ra7 {[%clk 0:02:21.1]} 20. Bc6 {[%clk 0:02:47.7]} 20... Nb8 {[%clk
0:02:17.9]} 21. d5 {[%clk 0:02:46.4]} 21... Nxc6 {[%clk 0:02:16.6]} 22. dxc6
{[%clk 0:02:46.3]} 22... Qf6 {[%clk 0:02:17.3]} 23. Qc2 {[%clk 0:02:43]} 23...
Qxb2 {[%clk 0:02:07.4]} 24. Qxb2 {[%clk 0:02:43.2]} 24... Bxb2 {[%clk
0:02:08.3]} 25. Rad1 {[%clk 0:02:43.8]} 25... b5 {[%clk 0:02:00.9]} 26. axb5
{[%clk 0:02:43.5]} 26... a4 {[%clk 0:02:00.6]} 27. Re7 {[%clk 0:02:36.2]} 27...
a3 {[%clk 0:01:58.7]} 28. Rxc7 {[%clk 0:02:36.4]} 28... Rxc7 {[%clk 0:01:55]}
29. Bxc7 {[%clk 0:02:36.1]} 29... a2 {[%clk 0:01:55.6]} 30. b6 {[%clk
0:02:32.6]} 30... a1=Q {[%clk 0:01:18.9]} 31. Rxa1 {[%clk 0:02:32.6]} 31... Bxa1
{[%clk 0:01:19.8]} 32. b7 {[%clk 0:02:32.7]} 32... Bd4 {[%clk 0:01:03.1]} 33.
b8=Q {[%clk 0:02:28.9]} 33... Rxb8 {[%clk 0:01:03.2]} 34. Bxb8 {[%clk
0:02:29.8]} 34... Kf8 {[%clk 0:01:03.6]} 35. c7 {[%clk 0:02:30.2]} 1-0

[Event "Late-Titled-Tuesday-Blitz-February-13-2024"]
[Site "Chess.com"]
[Date "2024.02.13"]
[Round "8"]
[White "MyDream003"]
[Black "ChristopherYoo"]
[Result "0-1"]
[WhiteElo "2750"]
[BlackElo "2965"]
[TimeControl "180+1"]
[EndTime "15:25:05 PST"]
[Termination "ChristopherYoo won by resignation"]

1. e4 {[%clk 0:03:00.9]} 1... e6 {[%clk 0:03:00.2]} 2. d4 {[%clk 0:03:00.9]}
2... d5 {[%clk 0:03:00.7]} 3. Nc3 {[%clk 0:02:59.4]} 3... Bb4 {[%clk 0:03:00.3]}
4. e5 {[%clk 0:02:59.7]} 4... Ne7 {[%clk 0:03:00.6]} 5. a3 {[%clk 0:02:57.5]}
5... Bxc3+ {[%clk 0:03:01]} 6. bxc3 {[%clk 0:02:58.4]} 6... c5 {[%clk
0:03:01.3]} 7. Qg4 {[%clk 0:02:58.1]} 7... Qc7 {[%clk 0:02:59.5]} 8. Bd3 {[%clk
0:02:49.8]} 8... cxd4 {[%clk 0:02:57.3]} 9. Ne2 {[%clk 0:02:50.1]} 9... dxc3
{[%clk 0:02:57.8]} 10. Qxg7 {[%clk 0:02:45]} 10... Rg8 {[%clk 0:02:57.6]} 11.
Qxh7 {[%clk 0:02:44.6]} 11... Nbc6 {[%clk 0:02:58.3]} 12. O-O {[%clk 0:02:29.6]}
12... Qxe5 {[%clk 0:02:49.2]} 13. Bf4 {[%clk 0:02:27]} 13... Qf6 {[%clk
0:02:48.5]} 14. Qh6 {[%clk 0:01:48.4]} 14... Qxh6 {[%clk 0:02:47.3]} 15. Bxh6
{[%clk 0:01:49.3]} 15... e5 {[%clk 0:02:47.5]} 16. Nxc3 {[%clk 0:01:48.7]} 16...
Bh3 {[%clk 0:02:45.9]} 17. g3 {[%clk 0:01:45.2]} 17... Bxf1 {[%clk 0:02:45.4]}
18. Bxf1 {[%clk 0:01:46.1]} 18... Nf5 {[%clk 0:02:40.4]} 19. Bd2 {[%clk
0:01:37.7]} 19... Rd8 {[%clk 0:02:37.1]} 20. Rb1 {[%clk 0:01:36.2]} 20... Rd7
{[%clk 0:02:29.6]} 21. Na4 {[%clk 0:01:36.1]} 21... Nfd4 {[%clk 0:02:25.2]} 22.
Bc3 {[%clk 0:01:33.2]} 22... b6 {[%clk 0:02:20.6]} 23. Bxd4 {[%clk 0:01:31.5]}
23... Nxd4 {[%clk 0:02:21.5]} 24. c3 {[%clk 0:01:32.2]} 24... Nf3+ {[%clk
0:02:21.8]} 25. Kg2 {[%clk 0:01:31.7]} 25... Nd2 {[%clk 0:02:21.3]} 26. Re1
{[%clk 0:01:31.9]} 26... Nxf1 {[%clk 0:02:18.7]} 27. Kxf1 {[%clk 0:01:25.1]}
27... f6 {[%clk 0:02:18.9]} 28. Nb2 {[%clk 0:01:24]} 28... Kf7 {[%clk 0:02:19]}
29. Nd3 {[%clk 0:01:23]} 29... Rc8 {[%clk 0:02:19.6]} 30. Rc1 {[%clk 0:01:22.2]}
30... Rdc7 {[%clk 0:02:20]} 31. Nb4 {[%clk 0:01:22.3]} 31... Rxc3 {[%clk
0:02:20.1]} 32. Rxc3 {[%clk 0:01:14.4]} 32... Rxc3 {[%clk 0:02:21]} 33. Nxd5
{[%clk 0:01:14.7]} 33... Rxa3 {[%clk 0:02:21]} 34. h4 {[%clk 0:01:15.6]} 34...
b5 {[%clk 0:02:19.9]} 35. h5 {[%clk 0:01:16]} 35... a5 {[%clk 0:02:18.5]} 36. h6
{[%clk 0:01:16.9]} 36... Kg6 {[%clk 0:02:17.2]} 37. h7 {[%clk 0:01:15]} 37...
Kxh7 {[%clk 0:02:17.5]} 0-1

[Event "Late-Titled-Tuesday-Blitz-February-13-2024"]
[Site "Chess.com"]
[Date "2024.02.13"]
[Round "8"]
[White "elgrona"]
[Black "scandalgod"]
[Result "0-1"]
[WhiteElo "2332"]
[BlackElo "2515"]
[TimeControl "180+1"]
[EndTime "15:25:38 PST"]
[Termination "scandalgod won by resignation"]

1. Nf3 {[%clk 0:02:52.3]} 1... d5 {[%clk 0:02:59.1]} 2. b3 {[%clk 0:02:53]} 2...
Nf6 {[%clk 0:02:57.8]} 3. Bb2 {[%clk 0:02:53.6]} 3... Bf5 {[%clk 0:02:57.9]} 4.
g3 {[%clk 0:02:53]} 4... e6 {[%clk 0:02:58.2]} 5. Bg2 {[%clk 0:02:53.7]} 5...
Be7 {[%clk 0:02:58.5]} 6. O-O {[%clk 0:02:54.4]} 6... h6 {[%clk 0:02:58.8]} 7.
c4 {[%clk 0:02:55.1]} 7... O-O {[%clk 0:02:58.8]} 8. d3 {[%clk 0:02:55.5]} 8...
c6 {[%clk 0:02:59]} 9. Nbd2 {[%clk 0:02:55.1]} 9... Bh7 {[%clk 0:02:59.6]} 10.
a3 {[%clk 0:02:55.1]} 10... Nbd7 {[%clk 0:02:59.6]} 11. Ra2 {[%clk 0:02:55.6]}
11... Re8 {[%clk 0:02:59.8]} 12. Qa1 {[%clk 0:02:55.6]} 12... Bd6 {[%clk
0:03:00.1]} 13. b4 {[%clk 0:02:55.3]} 13... Qe7 {[%clk 0:03:00]} 14. Rc1 {[%clk
0:02:54.2]} 14... e5 {[%clk 0:03:00]} 15. cxd5 {[%clk 0:02:51.3]} 15... cxd5
{[%clk 0:02:59.8]} 16. Re1 {[%clk 0:02:43]} 16... e4 {[%clk 0:02:58.1]} 17. Nd4
{[%clk 0:02:41]} 17... e3 {[%clk 0:02:54]} 18. Nf1 {[%clk 0:02:38.9]} 18...
exf2+ {[%clk 0:02:51.8]} 19. Kxf2 {[%clk 0:02:39.6]} 19... Ne5 {[%clk
0:02:41.2]} 20. Kg1 {[%clk 0:02:33.2]} 20... Neg4 {[%clk 0:02:38.2]} 21. Bc1
{[%clk 0:02:26.2]} 21... a5 {[%clk 0:02:23.5]} 22. h3 {[%clk 0:02:08.6]} 22...
Ne5 {[%clk 0:02:18.9]} 23. Nb5 {[%clk 0:01:32.1]} 23... axb4 {[%clk 0:02:09.9]}
24. Nxd6 {[%clk 0:01:29.1]} 24... Qxd6 {[%clk 0:02:09.6]} 25. axb4 {[%clk
0:01:19.1]} 25... Rxa2 {[%clk 0:02:08.5]} 26. Qxa2 {[%clk 0:01:19.1]} 26... Nxd3
{[%clk 0:02:05.4]} 0-1

[Event "Late-Titled-Tuesday-Blitz-February-13-2024"]
[Site "Chess.com"]
[Date "2024.02.13"]
[Round "8"]
[White "andjela_djidjika"]
[Black "koncheto"]
[Result "1-0"]
[WhiteElo "2154"]
[BlackElo "2464"]
[TimeControl "180+1"]
[EndTime "15:25:47 PST"]
[Termination "andjela_djidjika won by checkmate"]

1. e4 {[%clk 0:03:00.9]} 1... e5 {[%clk 0:02:49.7]} 2. Bc4 {[%clk 0:02:56.9]}
2... Nf6 {[%clk 0:02:43.5]} 3. d4 {[%clk 0:02:54.7]} 3... exd4 {[%clk
0:02:30.9]} 4. Nf3 {[%clk 0:02:54.2]} 4... d6 {[%clk 0:02:23.7]} 5. Ng5 {[%clk
0:02:47.9]} 5... d5 {[%clk 0:02:15.7]} 6. exd5 {[%clk 0:02:46.2]} 6... b5 {[%clk
0:01:52.3]} 7. Bxb5+ {[%clk 0:02:41.1]} 7... c6 {[%clk 0:01:52.3]} 8. dxc6
{[%clk 0:02:36.1]} 8... Qd5 {[%clk 0:01:52.4]} 9. Qe2+ {[%clk 0:02:26.1]} 9...
Be7 {[%clk 0:01:46.3]} 10. Bc4 {[%clk 0:02:26.1]} 10... Qxg2 {[%clk 0:01:42.8]}
11. Bxf7+ {[%clk 0:01:49]} 11... Kd8 {[%clk 0:01:16.9]} 12. c7+ {[%clk
0:01:42.1]} 12... Kxc7 {[%clk 0:00:52.4]} 13. Qxe7+ {[%clk 0:01:38.8]} 13... Kb6
{[%clk 0:00:44.4]} 14. Qb4+ {[%clk 0:01:34]} 14... Kc7 {[%clk 0:00:43.6]} 15.
Bf4+ {[%clk 0:01:31]} 15... Kc6 {[%clk 0:00:40.5]} 16. Qd6+ {[%clk 0:01:26.9]}
16... Kb7 {[%clk 0:00:36.4]} 17. Qc7+ {[%clk 0:01:25.1]} 17... Ka6 {[%clk
0:00:36.7]} 18. Bc4# {[%clk 0:01:25.2]} 1-0

[Event "Late-Titled-Tuesday-Blitz-February-13-2024"]
[Site "Chess.com"]
[Date "2024.02.13"]
[Round "8"]
[White "Semetey"]
[Black "Walter_White_Poland"]
[Result "1-0"]
[WhiteElo "2612"]
[BlackElo "2427"]
[TimeControl "180+1"]
[EndTime "15:26:01 PST"]
[Termination "Semetey won by resignation"]

1. e4 {[%clk 0:02:28.8]} 1... e5 {[%clk 0:02:59.3]} 2. Nf3 {[%clk 0:02:27.8]}
2... Nc6 {[%clk 0:02:59.4]} 3. Bc4 {[%clk 0:02:27.3]} 3... Nf6 {[%clk
0:02:58.6]} 4. d3 {[%clk 0:02:26.8]} 4... d5 {[%clk 0:02:58.7]} 5. exd5 {[%clk
0:02:25.9]} 5... Nxd5 {[%clk 0:02:58.9]} 6. O-O {[%clk 0:02:25.9]} 6... Nb6
{[%clk 0:02:58.9]} 7. Bb5 {[%clk 0:02:24.7]} 7... Bd6 {[%clk 0:02:58.9]} 8. Re1
{[%clk 0:02:24.7]} 8... f6 {[%clk 0:02:58.3]} 9. d4 {[%clk 0:02:10.7]} 9... O-O
{[%clk 0:02:57.1]} 10. Bxc6 {[%clk 0:02:08.5]} 10... bxc6 {[%clk 0:02:58]} 11.
dxe5 {[%clk 0:02:08.5]} 11... fxe5 {[%clk 0:02:58.9]} 12. h3 {[%clk 0:02:04.6]}
12... Qe8 {[%clk 0:02:51.4]} 13. Nc3 {[%clk 0:02:03.2]} 13... Qg6 {[%clk
0:02:51.2]} 14. Nxe5 {[%clk 0:01:57.4]} 14... Bxe5 {[%clk 0:02:46.8]} 15. Rxe5
{[%clk 0:01:58.3]} 15... Bf5 {[%clk 0:01:50.8]} 16. Be3 {[%clk 0:01:51.1]} 16...
Nc4 {[%clk 0:01:42.9]} 17. Re7 {[%clk 0:01:50.8]} 17... Bxh3 {[%clk 0:01:18]}
18. Qf1 {[%clk 0:01:44]} 18... Rad8 {[%clk 0:00:21.8]} 19. Qxc4+ {[%clk
0:01:42.4]} 19... Kh8 {[%clk 0:00:18.8]} 20. Qe4 {[%clk 0:01:41]} 1-0